[Event "FIDE World School-ch O-9 2025"]
[Site "Vrnjacka Banja"]
[Date "2025.03.22"]
[Round "3.1"]
[White "Agar, Garig"]
[Black "Ulan, Rizat"]
[Result "1/2-1/2"]
[Annotator "NA RC"]
[ECO "D38"]
[WhiteElo "1620"]
[BlackElo "1769"]
[PlyCount "81"]
[EventDate "2025.03.19"]
[EventType "swiss"]
[EventCountry "SRB"]
[SourceTitle "playchess.com"]
[Source "ChessBase"]
[SourceQuality "1"]
[TimeControl "5400+30"]

1. d4 {[%emt 0:03:28]} Nf6 {[%emt 0:00:06]} 2. c4 {[%emt 0:00:18]} e6 {[%emt 0:00:14]} 3. Nf3 {[%emt 0:00:15]} d5 {[%emt 0:00:04]} 4. Nc3 {[%emt 0:00:40]} Bb4 {[%emt 0:00:04]} 5. Qa4+ {[%emt 0:01:20]} Nc6 {[%emt 0:00:07]} 6. Qc2 {[%emt 0:01:18]} O-O {[%emt 0:05:31]} 7. e3 {[%emt 0:00:33]} a6 {[%emt 0:03:56]} 8. a3 {[%emt 0:03:24]} Bd6 {[%emt 0:00:28]} 9. c5 {[%emt 0:01:23]} Be7 {[%emt 0:00:05]} 10. Bd3 {[%emt 0:00:10]} a5 {[%emt 0:04:23]} 11. O-O {[%emt 0:02:45]} b6 {[%emt 0:00:58]} 12. Na4 {[%emt 0:06:19]} Bd7 {[%emt 0:00:11]} 13. Bd2 {[%emt 0:04:32]} Rb8 {[%emt 0:05:19]} 14. cxb6 {[%emt 0:01:59]} cxb6 {[%emt 0:00:10]} 15. Nc3 {[%emt 0:00:25]} Na7 {[%emt 0:06:05]} 16. Ne5 {[%emt 0:08:48]} b5 {[%emt 0:00:51]} 17. Rfc1 {[%emt 0:05:27]} Nc8 {[%emt 0:09:58]} 18. Nxd7 {[%emt 0:07:09]} Qxd7 {[%emt 0:00:06]} 19. Ne2 {[%emt 0:08:48]} Bd8 {[%emt 0:14:53]} 20. b4 {[%emt 0:05:03]} a4 {[%emt 0:01:49]} 21. Qc6 {[%emt 0:09:28]} Nd6 {[%emt 0:02:53]} 22. Qxd7 {[%emt 0:00:49]} Nxd7 {[%emt 0:00:04]} 23. Nc3 {[%emt 0:02:30]} Be7 {[%emt 0:01:02]} 24. e4 {[%emt 0:01:00]} dxe4 {[%emt 0:09:05]} 25. Nxe4 {[%emt 0:00:13]} Nxe4 {[%emt 0:34:38]} 26. Bxe4 {[%emt 0:25:26]} Nf6 {[%emt 0:00:00]} 27. Bf3 {[%emt 0:00:00]} Nd5 {[%emt 0:00:00]} 28. Ra2 {[%emt 0:00:00]} Rfd8 {[%emt 0:00:00]} 29. Rac2 {[%emt 0:00:00]} g5 {[%emt 0:00:00]} 30. h3 {[%emt 0:00:00]} h6 {[%emt 0:00:00]} 31. Be3 {[%emt 0:00:00]} Kg7 {[%emt 0:00:00]} 32. g4 {[%emt 0:00:00]} Rd7 {[%emt 0:00:00]} 33. Rc8 {[%emt 0:00:00]} Rxc8 {[%emt 0:00:00]} 34. Rxc8 {[%emt 0:00:00]} Nb6 {[%emt 0:00:00]} 35. Rb8 {[%emt 0:00:00]} Nc4 {[%emt 0:05:00]} 36. Bc6 {[%emt 0:00:00]} Rc7 {[%emt 0:00:00]} 37. Bxb5 {[%emt 0:00:00]} Nxa3 {[%emt 0:00:00]} 38. Bxa4 {[%emt 0:00:00]} Rc4 {[%emt 0:00:00]} 39. Rb7 {[%emt 0:00:00]} Rxb4 {[%emt 0:00:00]} 40. Rxb4 {[%emt 0:00:00]} Bxb4 {[%emt 0:00:00]} 41. Bb3 {[%emt 0:00:00]} 1/2-1/2

[Event "FIDE World School-ch O-9 2025"]
[Site "Vrnjacka Banja"]
[Date "2025.03.22"]
[Round "3.2"]
[White "Nematillakhonov, Nurmuhammad"]
[Black "Bondarev, Fedor"]
[Result "0-1"]
[Annotator "NA RC"]
[ECO "D20"]
[WhiteElo "1767"]
[BlackElo "1598"]
[PlyCount "119"]
[EventDate "2025.03.19"]
[EventType "swiss"]
[EventCountry "SRB"]
[SourceTitle "playchess.com"]
[Source "ChessBase"]
[SourceQuality "1"]
[TimeControl "5400+30"]

1. d4 {[%emt 0:02:39]} d5 {[%emt 0:00:26]} 2. c4 {[%emt 0:00:15]} dxc4 {[%emt 0:00:05]} 3. e3 {[%emt 0:00:12]} e5 {[%emt 0:00:33]} 4. Bxc4 {[%emt 0:00:36]} exd4 {[%emt 0:00:12]} 5. Nf3 {[%emt 0:00:58]} Nf6 {[%emt 0:02:35]} 6. Ng5 {[%emt 0:00:50]} Bb4+ {[%emt 0:14:16]} 7. Bd2 {[%emt 0:00:13]} Bxd2+ {[%emt 0:00:36]} 8. Qxd2 {[%emt 0:00:12]} O-O {[%emt 0:00:21]} 9. Qxd4 {[%emt 0:08:53]} Qxd4 {[%emt 0:00:27]} 10. exd4 {[%emt 0:00:02]} h6 {[%emt 0:00:20]} 11. Nf3 {[%emt 0:00:19]} Nc6 {[%emt 0:06:37]} 12. O-O {[%emt 0:01:14]} Bg4 {[%emt 0:01:26]} 13. Ne5 {[%emt 0:01:43]} Nxd4 {[%emt 0:00:20]} 14. Nxg4 {[%emt 0:00:08]} Nxg4 {[%emt 0:00:07]} 15. Nc3 {[%emt 0:00:09]} Ne5 {[%emt 0:02:03]} 16. Bd5 {[%emt 0:00:28]} c6 {[%emt 0:00:41]} 17. Rad1 {[%emt 0:00:04]} Nf5 {[%emt 0:01:01]} 18. Be4 {[%emt 0:00:03]} Ne7 {[%emt 0:00:19]} 19. f4 {[%emt 0:00:09]} Nc4 {[%emt 0:19:49]} 20. Rd7 {[%emt 0:00:35]} Nc8 {[%emt 0:01:54]} 21. b3 {[%emt 0:02:07]} N4d6 {[%emt 0:01:25]} 22. Bb1 {[%emt 0:02:41]} Rb8 {[%emt 0:01:55]} 23. Rd1 {[%emt 0:00:14]} Ne8 {[%emt 0:00:12]} 24. Rd8 {[%emt 0:00:24]} Nf6 {[%emt 0:01:09]} 25. Bf5 {[%emt 0:00:22]} Ne7 {[%emt 0:00:21]} 26. Rxb8 {[%emt 0:00:25]} Rxb8 {[%emt 0:00:06]} 27. Bb1 {[%emt 0:00:54]} Kf8 {[%emt 0:01:06]} 28. Be4 {[%emt 0:00:58]} Ke8 {[%emt 0:00:16]} 29. Bf3 {[%emt 0:00:23]} Rd8 {[%emt 0:00:43]} 30. Re1 {[%emt 0:00:33]} Rd2 {[%emt 0:08:59]} 31. Na4 {[%emt 0:10:53]} Nfd5 {[%emt 0:02:11]} 32. a3 {[%emt 0:01:16]} b6 {[%emt 0:01:23]} 33. b4 {[%emt 0:07:24]} Kd7 {[%emt 0:02:27]} 34. Rc1 {[%emt 0:06:01]} Nxf4 {[%emt 0:03:13]} 35. Nc3 {[%emt 0:00:29]} f5 {[%emt 0:01:49]} 36. g3 {[%emt 0:03:38]} Nfd5 {[%emt 0:00:26]} 37. Nb1 {[%emt 0:03:40]} Rd3 {[%emt 0:00:32]} 38. Be2 {[%emt 0:00:22]} Re3 {[%emt 0:00:10]} 39. Kf2 {[%emt 0:00:09]} Kd6 {[%emt 0:01:43]} 40. Bc4 {[%emt 0:03:58]} Re6 {[%emt 0:02:02]} 41. Nd2 {[%emt 0:00:28]} Rf6 {[%emt 0:04:28]} 42. Bb3 {[%emt 0:00:45]} b5 {[%emt 0:00:41]} 43. Bc2 {[%emt 0:05:53]} Ng6 {[%emt 0:01:34]} 44. h3 {[%emt 0:02:44]} Ne5 {[%emt 0:00:13]} 45. Bb1 {[%emt 0:00:36]} Rf8 {[%emt 0:02:55]} 46. Rc2 {[%emt 0:04:31]} Re8 {[%emt 0:02:18]} 47. Rc1 {[%emt 0:00:33]} Rf8 {[%emt 0:00:43]} 48. Rc2 {[%emt 0:00:06]} g5 {[%emt 0:00:36]} 49. Rc1 {[%emt 0:00:36]} Kc7 {[%emt 0:01:14]} 50. Re1 {[%emt 0:00:14]} Nc4 {[%emt 0:00:37]} 51. Nxc4 {[%emt 0:00:28]} bxc4 {[%emt 0:00:04]} 52. Re6 {[%emt 0:01:04]} f4 {[%emt 0:00:18]} 53. g4 {[%emt 0:00:08]} c3 {[%emt 0:00:30]} 54. Be4 {[%emt 0:01:10]} Rf6 {[%emt 0:00:49]} 55. Re5 {[%emt 0:01:07]} Kd6 {[%emt 0:00:40]} 56. Re8 {[%emt 0:00:59]} Re6 {[%emt 0:00:21]} 57. Rxe6+ {[%emt 0:00:44]} Kxe6 {[%emt 0:00:05]} 58. Ke2 {[%emt 0:00:26]} Ke5 {[%emt 0:00:11]} 59. Bf3 {[%emt 0:00:31]} Kd4 {[%emt 0:00:13]} 60. Kd1 {[%emt 0:00:30]} 0-1

[Event "FIDE World School-ch O-9 2025"]
[Site "Vrnjacka Banja"]
[Date "2025.03.22"]
[Round "3.3"]
[White "Arsenijevic, Matija"]
[Black "Wee, Yu Heng Lucas John"]
[Result "0-1"]
[Annotator "NA RC"]
[ECO "E20"]
[WhiteElo "1586"]
[BlackElo "1680"]
[PlyCount "90"]
[EventDate "2025.03.19"]
[EventType "swiss"]
[EventCountry "SRB"]
[SourceTitle "playchess.com"]
[Source "ChessBase"]
[SourceQuality "1"]
[TimeControl "5400+30"]

1. d4 {[%emt 0:00:04]} Nf6 {[%emt 0:00:21]} 2. c4 {[%emt 0:00:24]} e6 {[%emt 0:00:08]} 3. Nc3 {[%emt 0:00:26]} Bb4 {[%emt 0:00:08]} 4. Bd2 {[%emt 0:00:36]} c5 {[%emt 0:00:08]} 5. a3 {[%emt 0:01:01]} Bxc3 {[%emt 0:00:15]} 6. Bxc3 {[%emt 0:00:29]} Ne4 {[%emt 0:00:11]} 7. Qc2 {[%emt 0:01:12]} Nxc3 {[%emt 0:00:54]} 8. Qxc3 {[%emt 0:01:38]} cxd4 {[%emt 0:00:56]} 9. Qxd4 {[%emt 0:01:05]} O-O {[%emt 0:00:17]} 10. Nf3 {[%emt 0:01:06]} Nc6 {[%emt 0:00:12]} 11. Qc3 {[%emt 0:01:10]} Qc7 {[%emt 0:04:21]} 12. e3 {[%emt 0:03:28]} b6 {[%emt 0:02:17]} 13. Be2 {[%emt 0:02:31]} Ba6 {[%emt 0:03:20]} 14. b4 {[%emt 0:04:05]} Ne7 {[%emt 0:02:45]} 15. O-O {[%emt 0:11:08]} d5 {[%emt 0:02:58]} 16. Qe5 {[%emt 0:08:54]} Qxe5 {[%emt 0:03:53]} 17. Nxe5 {[%emt 0:00:25]} f6 {[%emt 0:00:21]} 18. b5 {[%emt 0:04:14]} Bxb5 {[%emt 0:00:56]} 19. cxb5 {[%emt 0:01:05]} fxe5 {[%emt 0:00:04]} 20. Bg4 {[%emt 0:01:24]} Nf5 {[%emt 0:02:14]} 21. Rac1 {[%emt 0:01:49]} Rac8 {[%emt 0:03:09]} 22. h3 {[%emt 0:01:37]} Kf7 {[%emt 0:01:08]} 23. Rfd1 {[%emt 0:01:40]} g6 {[%emt 0:01:39]} 24. e4 {[%emt 0:03:31]} h5 {[%emt 0:05:12]} 25. Bxf5 {[%emt 0:04:18]} gxf5 {[%emt 0:00:57]} 26. exd5 {[%emt 0:01:49]} exd5 {[%emt 0:00:40]} 27. Rxc8 {[%emt 0:00:59]} Rxc8 {[%emt 0:00:01]} 28. Rxd5 {[%emt 0:00:22]} Ke6 {[%emt 0:00:04]} 29. Rd1 {[%emt 0:01:00]} Rc3 {[%emt 0:05:14]} 30. Ra1 {[%emt 0:01:54]} Kd5 {[%emt 0:01:01]} 31. Kf1 {[%emt 0:02:06]} Kc4 {[%emt 0:00:51]} 32. a4 {[%emt 0:01:15]} Kb4 {[%emt 0:01:45]} 33. Rd1 {[%emt 0:02:02]} Kxa4 {[%emt 0:01:45]} 34. Rd7 {[%emt 0:02:10]} Kxb5 {[%emt 0:00:36]} 35. Rxa7 {[%emt 0:00:08]} Kc4 {[%emt 0:01:48]} 36. Ke2 {[%emt 0:02:33]} b5 {[%emt 0:01:47]} 37. Kd2 {[%emt 0:03:18]} b4 {[%emt 0:02:05]} 38. Rd7 {[%emt 0:02:02]} e4 {[%emt 0:00:55]} 39. Rf7 {[%emt 0:01:30]} Rd3+ {[%emt 0:02:41]} 40. Kc1 {[%emt 0:00:18]} Rd5 {[%emt 0:00:42]} 41. Rf8 {[%emt 0:02:36]} Kd3 {[%emt 0:01:34]} 42. Kb2 {[%emt 0:01:53]} Ke2 {[%emt 0:00:50]} 43. f4 {[%emt 0:00:48]} Kf2 {[%emt 0:00:27]} 44. Rg8 {[%emt 0:01:09]} e3 {[%emt 0:01:14]} 45. Re8 {[%emt 0:00:35]} e2 {[%emt 0:00:06]} 0-1

[Event "FIDE World School-ch O-9 2025"]
[Site "Vrnjacka Banja"]
[Date "2025.03.22"]
[Round "3.4"]
[White "Sultankhan, Nurislam"]
[Black "Zhanabayev, Arystan"]
[Result "1-0"]
[Annotator "NA RC"]
[ECO "A13"]
[WhiteElo "1649"]
[BlackElo "1507"]
[PlyCount "121"]
[EventDate "2025.03.19"]
[EventType "swiss"]
[EventCountry "SRB"]
[SourceTitle "playchess.com"]
[Source "ChessBase"]
[SourceQuality "1"]
[TimeControl "5400+30"]

1. Nf3 {[%emt 0:00:07]} Nf6 {[%emt 0:00:13]} 2. b3 {[%emt 0:00:24]} d5 {[%emt 0:00:06]} 3. Bb2 {[%emt 0:00:48]} e6 {[%emt 0:00:25]} 4. e3 {[%emt 0:00:58]} c5 {[%emt 0:00:11]} 5. Be2 {[%emt 0:01:03]} Be7 {[%emt 0:00:27]} 6. O-O {[%emt 0:00:50]} O-O {[%emt 0:00:08]} 7. c4 {[%emt 0:01:18]} Nc6 {[%emt 0:00:26]} 8. d4 {[%emt 0:01:00]} cxd4 {[%emt 0:00:27]} 9. Nxd4 {[%emt 0:00:29]} Nxd4 {[%emt 0:00:15]} 10. Qxd4 {[%emt 0:01:31]} dxc4 {[%emt 0:00:44]} 11. Qxc4 {[%emt 0:01:20]} Bd7 {[%emt 0:08:19]} 12. Nc3 {[%emt 0:02:30]} Rc8 {[%emt 0:02:32]} 13. Qf4 {[%emt 0:02:12]} Qa5 {[%emt 0:06:27]} 14. Rac1 {[%emt 0:07:22]} Bb4 {[%emt 0:10:46]} 15. Ne4 {[%emt 0:06:31]} Nxe4 {[%emt 0:11:00]} 16. Qxe4 {[%emt 0:01:34]} Be7 {[%emt 0:02:14]} 17. Bd3 {[%emt 0:07:02]} Qh5 {[%emt 0:03:13]} 18. Qxb7 {[%emt 0:07:05]} Bd6 {[%emt 0:03:49]} 19. h3 {[%emt 0:01:57]} Rcd8 {[%emt 0:09:51]} 20. Qe4 {[%emt 0:05:47]} Bb8 {[%emt 0:02:21]} 21. Qd4 {[%emt 0:10:07]} e5 {[%emt 0:01:31]} 22. Qe4 {[%emt 0:03:03]} Be6 {[%emt 0:04:18]} 23. Ba3 {[%emt 0:08:15]} f5 {[%emt 0:08:13]} 24. Qc6 {[%emt 0:01:06]} Rf6 {[%emt 0:09:14]} 25. Bc4 {[%emt 0:03:33]} Re8 {[%emt 0:02:36]} 26. Bxe6+ {[%emt 0:01:40]} Rfxe6 {[%emt 0:00:39]} 27. Qd5 {[%emt 0:01:58]} Qf7 {[%emt 0:04:55]} 28. Rfd1 {[%emt 0:01:43]} Ra6 {[%emt 0:03:17]} 29. Qc5 {[%emt 0:03:16]} h6 {[%emt 0:00:28]} 30. Rd2 {[%emt 0:01:48]} Kh7 {[%emt 0:03:51]} 31. Rcd1 {[%emt 0:02:42]} Ree6 {[%emt 0:02:08]} 32. Rd7 {[%emt 0:01:06]} Qf6 {[%emt 0:00:35]} 33. Bb4 {[%emt 0:04:21]} Rxa2 {[%emt 0:00:41]} 34. Rd8 {[%emt 0:00:51]} Ra1 {[%emt 0:00:21]} 35. Qc8 {[%emt 0:02:51]} Rxd1+ {[%emt 0:00:14]} 36. Rxd1 {[%emt 0:00:03]} Rb6 {[%emt 0:00:45]} 37. Qc4 {[%emt 0:01:51]} e4 {[%emt 0:00:39]} 38. Rd7 {[%emt 0:02:39]} Rc6 {[%emt 0:00:33]} 39. Qe2 {[%emt 0:01:29]} Qe5 {[%emt 0:00:26]} 40. g3 {[%emt 0:00:18]} Qe6 {[%emt 0:00:12]} 41. Re7 {[%emt 0:01:24]} Qxb3 {[%emt 0:00:25]} 42. Qb5 {[%emt 0:00:27]} Rc1+ {[%emt 0:00:38]} 43. Kh2 {[%emt 0:00:31]} Bxg3+ {[%emt 0:00:52]} 44. Kxg3 {[%emt 0:00:16]} Rg1+ {[%emt 0:00:14]} 45. Kf4 {[%emt 0:00:10]} Qb2 {[%emt 0:00:39]} 46. Qxf5+ {[%emt 0:01:18]} Rg6 {[%emt 0:00:15]} 47. Be1 {[%emt 0:01:14]} Qb8+ {[%emt 0:00:29]} 48. Re5 {[%emt 0:00:26]} Qd8 {[%emt 0:00:39]} 49. Kxe4 {[%emt 0:00:44]} Qc7 {[%emt 0:00:35]} 50. Kf3 {[%emt 0:00:51]} Qc6+ {[%emt 0:00:16]} 51. Ke2 {[%emt 0:00:29]} Kg8 {[%emt 0:00:43]} 52. Qe4 {[%emt 0:00:42]} Qa6+ {[%emt 0:00:16]} 53. Qd3 {[%emt 0:00:07]} Qf6 {[%emt 0:00:54]} 54. Bc3 {[%emt 0:00:22]} Qh4 {[%emt 0:00:29]} 55. Qxg6 {[%emt 0:00:26]} Qc4+ {[%emt 0:00:23]} 56. Qd3 {[%emt 0:00:11]} Qa2+ {[%emt 0:00:10]} 57. Kf1 {[%emt 0:00:10]} Qf7 {[%emt 0:00:45]} 58. Qd5 {[%emt 0:00:06]} a6 {[%emt 0:00:17]} 59. Re8+ {[%emt 0:00:10]} Kh7 {[%emt 0:00:16]} 60. Qxf7 {[%emt 0:00:10]} a5 {[%emt 0:00:10]} 61. Qxg7# {[%emt 0:00:08]} 1-0

[Event "FIDE World School-ch O-9 2025"]
[Site "Vrnjacka Banja"]
[Date "2025.03.22"]
[Round "3.5"]
[White "Khabul, Chinzorig"]
[Black "Dede, Omer Taha"]
[Result "1-0"]
[Annotator "NA RC"]
[ECO "E43"]
[WhiteElo "1513"]
[BlackElo "1647"]
[PlyCount "141"]
[EventDate "2025.03.19"]
[EventType "swiss"]
[EventCountry "SRB"]
[SourceTitle "playchess.com"]
[Source "ChessBase"]
[SourceQuality "1"]
[TimeControl "5400+30"]

1. d4 {[%emt 0:00:40]} Nf6 {[%emt 0:01:00]} 2. c4 {[%emt 0:00:40]} e6 {[%emt 0:01:00]} 3. Nc3 {[%emt 0:01:10]} Bb4 {[%emt 0:01:00]} 4. e3 {[%emt 0:00:46]} b6 {[%emt 0:01:30]} 5. Be2 {[%emt 0:04:22]} Bb7 {[%emt 0:01:00]} 6. Bf3 {[%emt 0:00:47]} Nc6 {[%emt 0:02:30]} 7. a3 {[%emt 0:00:26]} Be7 {[%emt 0:02:30]} 8. Nge2 {[%emt 0:02:55]} Na5 {[%emt 0:03:00]} 9. Bxb7 {[%emt 0:01:34]} Nxb7 {[%emt 0:00:30]} 10. e4 {[%emt 0:01:49]} d6 {[%emt 0:03:00]} 11. Ng3 {[%emt 0:03:03]} c5 {[%emt 0:01:30]} 12. d5 {[%emt 0:00:46]} O-O {[%emt 0:01:30]} 13. O-O {[%emt 0:00:20]} a6 {[%emt 0:06:30]} 14. a4 {[%emt 0:03:37]} Re8 {[%emt 0:03:00]} 15. Re1 {[%emt 0:00:38]} Qd7 {[%emt 0:01:00]} 16. Qd3 {[%emt 0:01:15]} exd5 {[%emt 0:01:30]} 17. exd5 {[%emt 0:03:16]} Bf8 {[%emt 0:01:30]} 18. Bg5 {[%emt 0:00:38]} Ng4 {[%emt 0:03:00]} 19. Nge4 {[%emt 0:11:57]} Ne5 {[%emt 0:02:30]} 20. Qg3 {[%emt 0:01:06]} Qg4 {[%emt 0:01:00]} 21. Qxg4 {[%emt 0:01:33]} Nxg4 {[%emt 0:00:30]} 22. Nd2 {[%emt 0:04:15]} Ne5 {[%emt 0:03:30]} 23. Nce4 {[%emt 0:03:17]} h6 {[%emt 0:01:30]} 24. Bf6 {[%emt 0:21:02]} Nd7 {[%emt 0:10:00]} 25. Bc3 {[%emt 0:00:45]} f5 {[%emt 0:01:00]} 26. Ng3 {[%emt 0:00:48]} g6 {[%emt 0:02:00]} 27. Ne2 {[%emt 0:00:51]} g5 {[%emt 0:05:00]} 28. Ng3 {[%emt 0:00:59]} f4 {[%emt 0:01:00]} 29. Nge4 {[%emt 0:00:58]} Kf7 {[%emt 0:01:30]} 30. Re2 {[%emt 0:01:37]} Bg7 {[%emt 0:02:01]} 31. Bxg7 {[%emt 0:00:26]} Kxg7 {[%emt 0:00:29]} 32. Rae1 {[%emt 0:00:27]} Kf7 {[%emt 0:02:00]} 33. Nf3 {[%emt 0:03:01]} Rac8 {[%emt 0:06:00]} 34. h4 {[%emt 0:00:39]} g4 {[%emt 0:01:00]} 35. Nh2 {[%emt 0:00:33]} h5 {[%emt 0:00:30]} 36. Ng5+ {[%emt 0:00:52]} Kf8 {[%emt 0:01:30]} 37. Ne6+ {[%emt 0:01:09]} Kf7 {[%emt 0:02:00]} 38. Nxf4 {[%emt 0:00:07]} Nf6 {[%emt 0:00:30]} 39. Nf1 {[%emt 0:24:56]} Na5 {[%emt 0:01:00]} 40. Nd2 {[%emt 0:00:00]} Rxe2 {[%emt 0:01:00]} 41. Rxe2 {[%emt 0:00:00]} Re8 {[%emt 0:00:30]} 42. Kf1 {[%emt 0:00:00]} Rxe2 {[%emt 0:01:00]} 43. Kxe2 {[%emt 0:00:00]} Nd7 {[%emt 0:00:30]} 44. Nxh5 {[%emt 0:00:00]} Ne5 {[%emt 0:00:30]} 45. b3 {[%emt 0:00:00]} Kg6 {[%emt 0:01:00]} 46. Nf4+ {[%emt 0:00:00]} Kf5 {[%emt 0:02:30]} 47. Nd3 {[%emt 0:00:00]} Ng6 {[%emt 0:01:20]} 48. g3 {[%emt 0:00:00]} Ne7 {[%emt 0:00:25]} 49. b4 {[%emt 0:00:00]} Nb7 {[%emt 0:00:25]} 50. bxc5 {[%emt 0:00:00]} bxc5 {[%emt 0:00:30]} 51. Nf1 {[%emt 0:00:00]} Ke4 {[%emt 0:00:30]} 52. Ne3 {[%emt 0:00:00]} Kd4 {[%emt 0:00:30]} 53. Nxg4 {[%emt 0:00:00]} Kxc4 {[%emt 0:00:10]} 54. Ne3+ {[%emt 0:00:00]} Kb3 {[%emt 0:00:10]} 55. h5 {[%emt 0:00:00]} c4 {[%emt 0:00:50]} 56. Ne1 {[%emt 0:00:00]} c3 {[%emt 0:00:50]} 57. h6 {[%emt 0:00:00]} Kxa4 {[%emt 0:00:26]} 58. f4 {[%emt 0:00:00]} Ng6 {[%emt 0:00:29]} 59. f5 {[%emt 0:00:00]} Nh8 {[%emt 0:00:10]} 60. g4 {[%emt 0:00:00]} Nd8 {[%emt 0:00:35]} 61. g5 {[%emt 0:00:00]} Ndf7 {[%emt 0:00:30]} 62. Nf3 {[%emt 0:00:00]} Kb3 {[%emt 0:00:40]} 63. h7 {[%emt 0:00:00]} Nxg5 {[%emt 0:04:50]} 64. Nxg5 {[%emt 0:00:00]} a5 {[%emt 0:00:17]} 65. f6 {[%emt 0:00:00]} a4 {[%emt 0:00:03]} 66. f7 {[%emt 0:00:00]} Nxf7 {[%emt 0:00:03]} 67. Nxf7 {[%emt 0:00:00]} a3 {[%emt 0:00:05]} 68. h8=Q {[%emt 0:00:00]} a2 {[%emt 0:00:15]} 69. Qb8+ {[%emt 0:00:00]} Ka3 {[%emt 0:00:07]} 70. Nc2+ {[%emt 0:00:00]} Ka4 {[%emt 0:00:07]} 71. Qb4# {[%emt 0:00:00]} 1-0

[Event "FIDE World School-ch O-9 2025"]
[Site "Vrnjacka Banja"]
[Date "2025.03.22"]
[Round "3.6"]
[White "Shenal, Navindu"]
[Black "Batbileg, Boldbaatar"]
[Result "0-1"]
[Annotator "NA RC"]
[ECO "C26"]
[WhiteElo "1438"]
[BlackElo "1637"]
[PlyCount "106"]
[EventDate "2025.03.19"]
[EventType "swiss"]
[EventCountry "SRB"]
[SourceTitle "playchess.com"]
[Source "ChessBase"]
[SourceQuality "1"]
[TimeControl "5400+30"]

1. e4 {[%emt 0:00:02]} e5 {[%emt 0:04:22]} 2. Nf3 {[%emt 0:00:10]} Nc6 {[%emt 0:00:14]} 3. d3 {[%emt 0:00:06]} Nf6 {[%emt 0:01:35]} 4. g3 {[%emt 0:00:14]} Bc5 {[%emt 0:00:18]} 5. Bg2 {[%emt 0:01:06]} O-O {[%emt 0:00:30]} 6. O-O {[%emt 0:00:08]} d6 {[%emt 0:00:17]} 7. h3 {[%emt 0:00:12]} a6 {[%emt 0:09:48]} 8. Nc3 {[%emt 0:00:35]} b5 {[%emt 0:00:11]} 9. Bg5 {[%emt 0:00:28]} h6 {[%emt 0:00:26]} 10. Bxf6 {[%emt 0:00:05]} Qxf6 {[%emt 0:00:18]} 11. Nd5 {[%emt 0:00:49]} Qd8 {[%emt 0:04:01]} 12. c3 {[%emt 0:00:28]} Bb7 {[%emt 0:03:31]} 13. Qd2 {[%emt 0:00:48]} f5 {[%emt 0:03:55]} 14. Nh4 {[%emt 0:01:14]} fxe4 {[%emt 0:08:32]} 15. dxe4 {[%emt 0:00:16]} Kh7 {[%emt 0:10:36]} 16. Qe2 {[%emt 0:02:06]} Ne7 {[%emt 0:02:21]} 17. Nxe7 {[%emt 0:02:00]} Qxe7 {[%emt 0:00:42]} 18. Qg4 {[%emt 0:00:16]} Rf6 {[%emt 0:03:40]} 19. Rad1 {[%emt 0:01:43]} Qf7 {[%emt 0:01:27]} 20. Nf3 {[%emt 0:01:18]} Rf8 {[%emt 0:03:31]} 21. Rd3 {[%emt 0:02:40]} Qc4 {[%emt 0:01:58]} 22. Rd2 {[%emt 0:02:47]} Qxe4 {[%emt 0:08:35]} 23. Qxe4+ {[%emt 0:01:02]} Bxe4 {[%emt 0:00:12]} 24. Ng5+ {[%emt 0:00:19]} hxg5 {[%emt 0:00:10]} 25. Bxe4+ {[%emt 0:00:07]} Kg8 {[%emt 0:00:28]} 26. b4 {[%emt 0:01:02]} Bb6 {[%emt 0:00:20]} 27. Kg2 {[%emt 0:00:38]} a5 {[%emt 0:01:15]} 28. a3 {[%emt 0:00:11]} c5 {[%emt 0:03:51]} 29. Bc6 {[%emt 0:01:06]} axb4 {[%emt 0:00:41]} 30. axb4 {[%emt 0:00:09]} cxb4 {[%emt 0:00:06]} 31. cxb4 {[%emt 0:00:06]} Kh7 {[%emt 0:01:25]} 32. Bxb5 {[%emt 0:00:50]} e4 {[%emt 0:00:30]} 33. Rc2 {[%emt 0:03:07]} d5 {[%emt 0:13:13]} 34. Bc6 {[%emt 0:05:21]} Rf5 {[%emt 0:02:06]} 35. g4 {[%emt 0:02:57]} Re5 {[%emt 0:00:09]} 36. Re1 {[%emt 0:02:41]} Rf4 {[%emt 0:03:56]} 37. Rce2 {[%emt 0:00:39]} Kg8 {[%emt 0:01:53]} 38. b5 {[%emt 0:00:41]} Kf7 {[%emt 0:00:35]} 39. Bd7 {[%emt 0:01:33]} d4 {[%emt 0:01:54]} 40. Bc6 {[%emt 0:01:04]} d3 {[%emt 0:00:23]} 41. Rd2 {[%emt 0:00:40]} Ba5 {[%emt 0:00:59]} 42. b6 {[%emt 0:01:43]} Bxb6 {[%emt 0:01:51]} 43. Rxd3 {[%emt 0:04:10]} exd3 {[%emt 0:04:14]} 44. Rxe5 {[%emt 0:00:13]} d2 {[%emt 0:00:28]} 45. Rd5 {[%emt 0:00:35]} Rxf2+ {[%emt 0:00:41]} 46. Kg3 {[%emt 0:00:10]} Ke6 {[%emt 0:00:38]} 47. Rd3 {[%emt 0:00:18]} Ke5 {[%emt 0:00:21]} 48. Bb7 {[%emt 0:00:18]} Re2 {[%emt 0:00:35]} 49. Bf3 {[%emt 0:00:27]} Rf2 {[%emt 0:00:23]} 50. Bb7 {[%emt 0:00:12]} Ke6 {[%emt 0:00:14]} 51. Bc6 {[%emt 0:00:09]} Re2 {[%emt 0:00:15]} 52. Bf3 {[%emt 0:00:10]} Bc7+ {[%emt 0:00:06]} 53. Rd6+ {[%emt 0:00:15]} Bxd6# {[%emt 0:00:06]} 0-1